fUSD/lending_fUSD_20260606
["ID","MTS","AMOUNT","RATE_DAILY","PERIOD"]
[424303035,1780758645000,-14184.8,0.00025093,7]
[424303028,1780758645000,-439.12,0.00025,2]
[424303031,1780758645000,-439.12,0.00025,2]
[424303029,1780758645000,-439.12,0.00025,2]
[424303025,1780758645000,-439.12,0.00025,2]
[424303030,1780758645000,-439.12,0.00025,2]
[424303023,1780758645000,-439.12,0.00025,2]
[424303024,1780758645000,-439.12,0.00025,2]
[424303022,1780758645000,-439.12,0.00025,2]
[424303020,1780758645000,-4129.869333,0.00025,2]
[424303021,1780758645000,-960.0,0.00025,2]
[424303118,1780758646000,-223.0,0.00025649,2]
[424303116,1780758646000,-150.0,0.00025649,2]
[424303126,1780758646000,-200.0,0.00025669,2]
[424303117,1780758646000,-150.0,0.00025649,2]
[424303120,1780758646000,-151.0,0.00025664,2]
[424303114,1780758646000,-150.0,0.00025649,2]
[424303106,1780758646000,-152.0,0.00025609,2]
[424303104,1780758646000,-152.0,0.00025609,2]
[424303105,1780758646000,-152.0,0.00025609,2]
[424303102,1780758646000,-152.0,0.00025609,2]
[424303125,1780758646000,-200.0,0.00025669,2]
[424303115,1780758646000,-150.0,0.00025649,2]
[424303127,1780758646000,-200.0,0.00025669,2]
[424303130,1780758646000,-205.0,0.00025669,2]
[424303121,1780758646000,-6471.42731478,0.00025664,2]
[424303122,1780758646000,-200.0,0.00025669,2]
[424303124,1780758646000,-200.0,0.00025669,2]
[424303123,1780758646000,-200.0,0.00025669,2]
[424303129,1780758646000,-200.0,0.00025669,2]
[424303135,1780758646000,-1074.65,0.00025749,7]
[424303137,1780758646000,-151.0,0.00025774,2]
[424303138,1780758646000,-6959.17232007,0.00025774,2]
[424303139,1780758646000,-207.17,0.00025776,2]
[424303128,1780758646000,-200.0,0.00025669,2]
[424303136,1780758646000,-773.24136889,0.00025774,2]
[424303131,1780758646000,-745.65223615,0.00025719,2]
[424303100,1780758646000,-152.0,0.00025609,2]
[424303119,1780758646000,-719.04747942,0.00025664,2]
[424303103,1780758646000,-152.0,0.00025609,2]
[424303066,1780758646000,-279.9045709,0.00025609,2]
[424303109,1780758646000,-150.0,0.00025649,2]
[424303132,1780758646000,-151.0,0.00025719,2]
[424303068,1780758646000,-1280.88388877,0.00025609,2]
[424303070,1780758646000,-174.61919141,0.00025609,2]
[424303072,1780758646000,-1328.27659266,0.00025609,2]
[424303076,1780758646000,-693.39197629,0.00025609,2]
[424303084,1780758646000,-1428.38747117,0.00025609,2]
[424303074,1780758646000,-1377.42282658,0.00025609,2]
[424303078,1780758646000,-578.20924308,0.00025609,2]
[424303080,1780758646000,-160.0,0.00025609,2]
[424303086,1780758646000,-200.0,0.00025609,2]
[424303082,1780758646000,-9552.16786547,0.00025609,2]
[424303087,1780758646000,-151.0,0.00025609,2]
[424303090,1780758646000,-500.0,0.00025609,2]
[424303089,1780758646000,-151.0,0.00025609,2]
[424303088,1780758646000,-6240.52778667,0.00025609,2]
[424303091,1780758646000,-200.0,0.00025609,2]
[424303097,1780758646000,-152.0,0.00025609,2]
[424303099,1780758646000,-152.0,0.00025609,2]
[424303092,1780758646000,-152.0,0.00025609,2]
[424303098,1780758646000,-152.0,0.00025609,2]
[424303096,1780758646000,-721.12765534,0.00025609,2]
[424303094,1780758646000,-209.40437684,0.00025609,2]
[424303093,1780758646000,-200.0,0.00025609,2]
[424303095,1780758646000,-209.40437684,0.00025609,2]
[424303107,1780758646000,-433.44,0.00025644,2]
[424303101,1780758646000,-152.0,0.00025609,2]
[424303111,1780758646000,-150.0,0.00025649,2]
[424303112,1780758646000,-150.0,0.00025649,2]
[424303133,1780758646000,-6710.87012543,0.00025719,2]
[424303197,1780758646000,-2000.0,0.00026643,2]
[424303146,1780758646000,-151.0,0.00025829,2]
[424303175,1780758646000,-1481.2378076,0.00026157,2]
[424303174,1780758646000,-9905.59807649,0.00026157,2]
[424303167,1780758646000,-961.58486558,0.00026104,2]
[424303173,1780758646000,-719.04747942,0.00026157,2]
[424303177,1780758646000,-151.0,0.00026157,2]
[424303176,1780758646000,-200.0,0.00026157,2]
[424303179,1780758646000,-200.0,0.00026157,2]
[424303187,1780758646000,-1753.50455484,0.00026328,2]
[424303181,1780758646000,-217.15233878,0.00026157,2]
[424303178,1780758646000,-500.0,0.00026157,2]
[424303180,1780758646000,-217.15233878,0.00026157,2]
[424303188,1780758646000,-417.54734895,0.00026446,2]
[424303182,1780758646000,-997.16350561,0.00026159,2]
[424303183,1780758646000,-151.0,0.00026159,2]
[424303185,1780758646000,-4204.8,0.00026296,2]
[424303184,1780758646000,-1093.96,0.000262,7]
[424303186,1780758646000,-327.79589412,0.00026328,2]
[424303189,1780758646000,-2000.0,0.0002652,7]
[424303190,1780758646000,-158.84180084,0.00026548,2]
[424303192,1780758646000,-200.0,0.0002662,2]
[424303191,1780758646000,-158.84180084,0.00026548,2]
[424303199,1780758646000,-2000.0,0.00026643,2]
[424303196,1780758646000,-2000.0,0.00026643,2]
[424303193,1780758646000,-2000.0,0.00026643,2]
[424303198,1780758646000,-2000.0,0.00026643,2]
[424303194,1780758646000,-2000.0,0.00026643,2]
[424303134,1780758646000,-1000.33,0.00025749,7]
[424303172,1780758646000,-181.08010149,0.00026157,2]
[424303170,1780758646000,-217.15233878,0.00026157,2]
[424303195,1780758646000,-2000.0,0.00026643,2]
[424303171,1780758646000,-290.26104002,0.00026157,2]
[424303169,1780758646000,-1799.0,0.00026105,2]
[424303148,1780758646000,-2322.0,0.00025843,3]
[424303145,1780758646000,-801.85129954,0.00025829,2]
[424303142,1780758646000,-4318.95,0.00025786,2]
[424303143,1780758646000,-39685.16,0.00025786,2]
[424303140,1780758646000,-28736.2,0.00025786,2]
[424303151,1780758646000,-831.51979762,0.00025884,2]
[424303152,1780758646000,-151.0,0.00025884,2]
[424303147,1780758646000,-7216.66169591,0.00025829,2]
[424303141,1780758646000,-1600.69,0.00025786,2]
[424303144,1780758646000,-423.33,0.00025786,2]
[424303150,1780758646000,-500.0,0.00025863,2]
[424303154,1780758646000,-151.0,0.00025924,4]
[424303149,1780758646000,-200.0,0.00025846,2]
[424303160,1780758646000,-151.0,0.00025994,2]
[424303166,1780758646000,-500.0,0.00026082,2]
[424303168,1780758646000,-151.0,0.00026104,2]
[424303164,1780758646000,-927.27566594,0.00026049,2]
[424303159,1780758646000,-894.19061325,0.00025994,2]
[424303161,1780758646000,-550.0,0.00026,2]
[424303165,1780758646000,-151.0,0.00026049,2]
[424303162,1780758646000,-5530.0,0.00026,3]
[424303158,1780758646000,-242.80105347,0.00025971,2]
[424303157,1780758646000,-5451.74277264,0.00025939,2]
[424303153,1780758646000,-7483.67817866,0.00025884,2]
[424303156,1780758646000,-151.0,0.00025939,2]
[424303155,1780758646000,-862.28603014,0.00025939,2]
[424303163,1780758646000,-215.80795776,0.00026,7]
[424303237,1780758647000,-1000.0,0.00026643,2]
[424303235,1780758647000,-1000.0,0.00026643,2]
[424303233,1780758647000,-1000.0,0.00026643,2]
[424303231,1780758647000,-1000.0,0.00026643,2]
[424303229,1780758647000,-1000.0,0.00026643,2]
[424303234,1780758647000,-1000.0,0.00026643,2]
[424303230,1780758647000,-1000.0,0.00026643,2]
[424303232,1780758647000,-1000.0,0.00026643,2]
[424303238,1780758647000,-1000.0,0.00026643,2]
[424303236,1780758647000,-1000.0,0.00026643,2]
[424303242,1780758647000,-1000.0,0.00026643,2]
[424303248,1780758647000,-10272.10520532,0.00026705,2]
[424303240,1780758647000,-1000.0,0.00026643,2]
[424303241,1780758647000,-1000.0,0.00026643,2]
[424303249,1780758647000,-1536.04360648,0.00026705,2]
[424303247,1780758647000,-745.65223615,0.00026705,2]
[424303244,1780758647000,-225.18697532,0.00026705,2]
[424303245,1780758647000,-187.78006524,0.00026705,2]
[424303246,1780758647000,-301.0006985,0.00026705,2]
[424303250,1780758647000,-200.0,0.00026705,2]
[424303253,1780758647000,-225.18697532,0.00026705,2]
[424303251,1780758647000,-151.0,0.00026705,2]
[424303239,1780758647000,-1000.0,0.00026643,2]
[424303252,1780758647000,-500.0,0.00026705,2]
[424303243,1780758647000,-494.54,0.00026643,2]
[424303227,1780758647000,-1000.0,0.00026643,2]
[424303218,1780758647000,-1000.0,0.00026643,2]
[424303220,1780758647000,-1000.0,0.00026643,2]
[424303254,1780758647000,-200.0,0.00026705,2]
[424303200,1780758647000,-2000.0,0.00026643,2]
[424303202,1780758647000,-2000.0,0.00026643,2]
[424303213,1780758647000,-1000.0,0.00026643,2]
[424303212,1780758647000,-1000.0,0.00026643,2]
[424303201,1780758647000,-2000.0,0.00026643,2]
[424303210,1780758647000,-1000.0,0.00026643,2]
[424303209,1780758647000,-1789.31,0.00026643,2]
[424303203,1780758647000,-2000.0,0.00026643,2]
[424303211,1780758647000,-1000.0,0.00026643,2]
[424303205,1780758647000,-2000.0,0.00026643,2]
[424303204,1780758647000,-2000.0,0.00026643,2]
[424303228,1780758647000,-1000.0,0.00026643,2]
[424303206,1780758647000,-2000.0,0.00026643,2]
[424303208,1780758647000,-2000.0,0.00026643,2]
[424303219,1780758647000,-1000.0,0.00026643,2]
[424303216,1780758647000,-1000.0,0.00026643,2]
[424303222,1780758647000,-1000.0,0.00026643,2]
[424303226,1780758647000,-1000.0,0.00026643,2]
[424303223,1780758647000,-1000.0,0.00026643,2]
[424303221,1780758647000,-1000.0,0.00026643,2]
[424303215,1780758647000,-1000.0,0.00026643,2]
[424303214,1780758647000,-1000.0,0.00026643,2]
[424303224,1780758647000,-1000.0,0.00026643,2]
[424303225,1780758647000,-1000.0,0.00026643,2]
[424303217,1780758647000,-1000.0,0.00026643,2]
[424303207,1780758647000,-2000.0,0.00026643,2]
[424303255,1780758647000,-225.18697532,0.00026705,2]
[424303262,1780758647000,-156.587,0.00026978,2]
[424303256,1780758647000,-155.51823131,0.00026713,2]
[424303281,1780758647000,-218.73222612,0.00027123,2]
[424303289,1780758647000,-278.44102927,0.00027123,2]
[424303290,1780758647000,-500.0,0.00027123,2]
[424303297,1780758647000,-150.0,0.00027123,2]
[424303294,1780758647000,-278.23959598,0.00027123,2]
[424303291,1780758647000,-500.0,0.00027123,2]
[424303292,1780758647000,-500.0,0.00027123,2]
[424303293,1780758647000,-500.0,0.00027123,2]
[424303295,1780758647000,-150.0,0.00027123,2]
[424303296,1780758647000,-150.0,0.00027123,2]
[424303299,1780758647000,-150.0,0.00027123,2]
[424303300,1780758647000,-200.0,0.00027123,2]
[424303298,1780758647000,-150.0,0.00027123,2]
[424303301,1780758647000,-150.0,0.00027123,2]
[424303302,1780758647000,-300.0,0.00027123,14]
[424303309,1780758647000,-500.0,0.00027123,2]
[424303310,1780758647000,-500.0,0.00027123,2]
[424303307,1780758647000,-500.0,0.00027123,2]
[424303306,1780758647000,-500.0,0.00027123,2]
[424303305,1780758647000,-500.0,0.00027123,2]
[424303311,1780758647000,-500.0,0.00027123,2]
[424303303,1780758647000,-150.0,0.00027123,2]
[424303257,1780758647000,-14184.8,0.00026791,7]
[424303304,1780758647000,-250.0,0.00027123,2]
[424303308,1780758647000,-500.0,0.00027123,2]
[424303288,1780758647000,-166.00519298,0.00027123,2]
[424303282,1780758647000,-500.0,0.00027123,2]
[424303312,1780758647000,-633.28363338,0.00027123,2]
[424303285,1780758647000,-500.0,0.00027123,2]
[424303286,1780758647000,-150.0,0.00027123,2]
[424303259,1780758647000,-348.0,0.00026893,2]
[424303260,1780758647000,-5530.0,0.000269,5]
[424303261,1780758647000,-151.0,0.00026924,4]
[424303264,1780758647000,-160.0,0.00026978,2]
[424303272,1780758647000,-1538.96456307,0.00027113,2]
[424303273,1780758647000,-158.06927802,0.00027123,2]
[424303267,1780758647000,-259.82,0.00027,2]
[424303266,1780758647000,-259.82,0.00027,2]
[424303275,1780758647000,-287.44605956,0.00027123,2]
[424303274,1780758647000,-150.0,0.00027123,2]
[424303265,1780758647000,-259.82,0.00027,2]
[424303258,1780758647000,-1067.13687121,0.00026793,2]
[424303268,1780758647000,-259.82,0.00027,2]
[424303263,1780758647000,-217.15233878,0.00026978,2]
[424303284,1780758647000,-500.0,0.00027123,2]
[424303279,1780758647000,-500.0,0.00027123,2]
[424303280,1780758647000,-500.0,0.00027123,2]
[424303278,1780758647000,-500.0,0.00027123,2]
[424303287,1780758647000,-183.93938706,0.00027123,2]
[424303277,1780758647000,-500.0,0.00027123,2]
[424303276,1780758647000,-500.0,0.00027123,2]
[424303270,1780758647000,-3642.0,0.00027025,2]
[424303271,1780758647000,-419.0,0.00027025,2]
[424303269,1780758647000,-259.86,0.00027,2]
[424303283,1780758647000,-500.0,0.00027123,2]
[424303344,1780758648000,-500.0,0.00027123,2]
[424303348,1780758648000,-500.0,0.00027123,2]
[424303340,1780758648000,-565.0,0.00027123,2]
[424303349,1780758648000,-1098.0,0.00027123,2]
[424303350,1780758648000,-565.0,0.00027123,2]
[424303351,1780758648000,-500.0,0.00027123,2]
[424303342,1780758648000,-500.0,0.00027123,2]
[424303345,1780758648000,-1098.0,0.00027123,2]
[424303343,1780758648000,-500.0,0.00027123,2]
[424303341,1780758648000,-1098.0,0.00027123,2]
[424303361,1780758648000,-500.0,0.00027123,2]
[424303346,1780758648000,-565.0,0.00027123,2]
[424303353,1780758648000,-565.0,0.00027123,2]
[424303360,1780758648000,-359.92465112,0.00027123,2]
[424303352,1780758648000,-500.0,0.00027123,2]
[424303363,1780758648000,-1244.0,0.00027123,2]
[424303362,1780758648000,-1098.0,0.00027123,2]
[424303364,1780758648000,-500.0,0.00027123,2]
[424303354,1780758648000,-1098.0,0.00027123,2]
[424303359,1780758648000,-1244.0,0.00027123,2]
[424303358,1780758648000,-1098.0,0.00027123,2]
[424303333,1780758648000,-565.0,0.00027123,2]
[424303347,1780758648000,-500.0,0.00027123,2]
[424303334,1780758648000,-1098.0,0.00027123,2]
[424303326,1780758648000,-565.0,0.00027123,2]
[424303332,1780758648000,-565.0,0.00027123,2]
[424303314,1780758648000,-565.0,0.00027123,2]
[424303313,1780758648000,-150.0,0.00027123,2]
[424303316,1780758648000,-1098.0,0.00027123,2]
[424303315,1780758648000,-565.0,0.00027123,2]
[424303319,1780758648000,-565.0,0.00027123,2]
[424303318,1780758648000,-1098.0,0.00027123,2]
[424303317,1780758648000,-565.0,0.00027123,2]
[424303322,1780758648000,-1098.0,0.00027123,2]
[424303320,1780758648000,-1098.0,0.00027123,2]
[424303321,1780758648000,-565.0,0.00027123,2]
[424303335,1780758648000,-500.0,0.00027123,2]
[424303323,1780758648000,-565.0,0.00027123,2]
[424303325,1780758648000,-500.0,0.00027123,2]
[424303328,1780758648000,-565.0,0.00027123,2]
[424303336,1780758648000,-500.0,0.00027123,2]
[424303327,1780758648000,-1098.0,0.00027123,2]
[424303337,1780758648000,-1098.0,0.00027123,2]
[424303330,1780758648000,-500.0,0.00027123,2]
[424303338,1780758648000,-565.0,0.00027123,2]
[424303339,1780758648000,-500.0,0.00027123,2]
[424303329,1780758648000,-1098.0,0.00027123,2]
[424303331,1780758648000,-500.0,0.00027123,2]
[424303324,1780758648000,-1098.0,0.00027123,2]
[424303355,1780758648000,-500.0,0.00027123,2]
[424303357,1780758648000,-565.0,0.00027123,2]
[424303365,1780758648000,-1098.0,0.00027123,2]
[424303390,1780758648000,-206.7425237,0.00027123,2]
[424303393,1780758648000,-565.0,0.00027123,2]
[424303391,1780758648000,-1244.0,0.00027123,2]
[424303392,1780758648000,-515.0,0.00027123,2]
[424303394,1780758648000,-515.0,0.00027123,2]
[424303395,1780758648000,-1244.0,0.00027123,2]
[424303396,1780758648000,-515.0,0.00027123,2]
[424303399,1780758648000,-515.0,0.00027123,2]
[424303397,1780758648000,-1098.0,0.00027123,2]
[424303398,1780758648000,-1244.0,0.00027123,2]
[424303400,1780758648000,-1828.0,0.00027123,2]
[424303403,1780758648000,-1828.0,0.00027123,2]
[424303413,1780758648000,-1244.0,0.00027123,2]
[424303415,1780758648000,-1098.0,0.00027123,2]
[424303407,1780758648000,-515.0,0.00027123,2]
[424303404,1780758648000,-515.0,0.00027123,2]
[424303410,1780758648000,-1828.0,0.00027123,2]
[424303406,1780758648000,-1244.0,0.00027123,2]
[424303405,1780758648000,-1828.0,0.00027123,2]
[424303408,1780758648000,-1828.0,0.00027123,2]
[424303409,1780758648000,-515.0,0.00027123,2]
[424303356,1780758648000,-500.0,0.00027123,2]
[424303414,1780758648000,-1828.0,0.00027123,2]
[424303401,1780758648000,-1244.0,0.00027123,2]
[424303412,1780758648000,-1828.0,0.00027123,2]
[424303389,1780758648000,-515.0,0.00027123,2]
[424303402,1780758648000,-515.0,0.00027123,2]
[424303372,1780758648000,-1098.0,0.00027123,2]
[424303373,1780758648000,-515.0,0.00027123,2]
[424303374,1780758648000,-1244.0,0.00027123,2]
[424303375,1780758648000,-565.0,0.00027123,2]
[424303369,1780758648000,-1244.0,0.00027123,2]
[424303371,1780758648000,-1244.0,0.00027123,2]
[424303367,1780758648000,-500.0,0.00027123,2]
[424303366,1780758648000,-1244.0,0.00027123,2]
[424303370,1780758648000,-449.71848685,0.00027123,2]
[424303377,1780758648000,-1244.0,0.00027123,2]
[424303385,1780758648000,-150.0,0.00027123,2]
[424303368,1780758648000,-565.0,0.00027123,2]
[424303386,1780758648000,-515.0,0.00027123,2]
[424303382,1780758648000,-1244.0,0.00027123,2]
[424303383,1780758648000,-515.0,0.00027123,2]
[424303380,1780758648000,-1098.0,0.00027123,2]
[424303381,1780758648000,-515.0,0.00027123,2]
[424303384,1780758648000,-1244.0,0.00027123,2]
[424303378,1780758648000,-515.0,0.00027123,2]
[424303376,1780758648000,-515.0,0.00027123,2]
[424303387,1780758648000,-1244.0,0.00027123,2]
[424303388,1780758648000,-150.0,0.00027123,2]
[424303379,1780758648000,-1244.0,0.00027123,2]
[424303470,1780758649000,-500.0,0.00027123,2]
[424303458,1780758649000,-500.0,0.00027123,2]
[424303459,1780758649000,-500.0,0.00027123,2]
[424303465,1780758649000,-1828.0,0.00027123,2]
[424303475,1780758649000,-150.0,0.00027123,2]
[424303466,1780758649000,-536.50885793,0.00027123,2]
[424303468,1780758649000,-500.0,0.00027123,2]
[424303469,1780758649000,-500.0,0.00027123,2]
[424303467,1780758649000,-1835.71235742,0.00027123,2]
[424303464,1780758649000,-1252.05631674,0.00027123,2]
[424303476,1780758649000,-500.0,0.00027123,2]
[424303477,1780758649000,-216.30324944,0.00027123,2]
[424303484,1780758649000,-1933.13854938,0.00027155,5]
[424303473,1780758649000,-481.11085494,0.00027123,2]
[424303471,1780758649000,-500.0,0.00027123,2]
[424303474,1780758649000,-150.0,0.00027123,2]
[424303479,1780758649000,-500.0,0.00027123,2]
[424303487,1780758649000,-312.13772435,0.00027253,2]
[424303489,1780758649000,-10652.17309792,0.00027253,2]
[424303488,1780758649000,-773.24136889,0.00027253,2]
[424303478,1780758649000,-500.0,0.00027123,2]
[424303481,1780758649000,-210.61267653,0.00027123,2]
[424303482,1780758649000,-711.0,0.00027137,2]
[424303460,1780758649000,-500.0,0.00027123,2]
[424303472,1780758649000,-500.0,0.00027123,2]
[424303457,1780758649000,-515.0,0.00027123,2]
[424303437,1780758649000,-1098.0,0.00027123,2]
[424303455,1780758649000,-500.0,0.00027123,2]
[424303435,1780758649000,-565.0,0.00027123,2]
[424303485,1780758649000,-233.5188934,0.00027253,2]
[424303434,1780758649000,-1244.0,0.00027123,2]
[424303436,1780758649000,-1828.0,0.00027123,2]
[424303438,1780758649000,-515.0,0.00027123,2]
[424303442,1780758649000,-565.0,0.00027123,2]
[424303440,1780758649000,-1244.0,0.00027123,2]
[424303441,1780758649000,-515.0,0.00027123,2]
[424303439,1780758649000,-1828.0,0.00027123,2]
[424303449,1780758649000,-1104.0953843,0.00027123,2]
[424303444,1780758649000,-1098.0,0.00027123,2]
[424303456,1780758649000,-500.0,0.00027123,2]
[424303447,1780758649000,-515.0,0.00027123,2]
[424303443,1780758649000,-1828.0,0.00027123,2]
[424303446,1780758649000,-1828.0,0.00027123,2]
[424303445,1780758649000,-1244.0,0.00027123,2]
[424303451,1780758649000,-500.0,0.00027123,2]
[424303461,1780758649000,-500.0,0.00027123,2]
[424303450,1780758649000,-1244.0,0.00027123,2]
[424303463,1780758649000,-197.22054503,0.00027123,2]
[424303453,1780758649000,-1828.0,0.00027123,2]
[424303462,1780758649000,-150.0,0.00027123,2]
[424303452,1780758649000,-500.0,0.00027123,2]
[424303454,1780758649000,-150.0,0.00027123,2]
[424303448,1780758649000,-587.36410633,0.00027123,2]
[424303480,1780758649000,-263.05807639,0.00027123,2]
[424303486,1780758649000,-194.72792766,0.00027253,2]
[424303490,1780758649000,-1592.87721992,0.00027253,2]
[424303519,1780758649000,-477.13311722,0.00027397,2]
[424303517,1780758649000,-51202.77,0.00027397,10]
[424303518,1780758649000,-42668.97,0.00027397,10]
[424303525,1780758649000,-200.0,0.000274,2]
[424303522,1780758649000,-699.87,0.000274,14]
[424303523,1780758649000,-1933.06,0.000274,7]
[424303526,1780758649000,-309.0,0.000274,2]
[424303527,1780758649000,-1000.0,0.000274,2]
[424303528,1780758649000,-211.89454194,0.00027415,2]
[424303529,1780758649000,-700.0,0.00027457,2]
[424303532,1780758649000,-700.0,0.00027457,2]
[424303531,1780758649000,-700.0,0.00027457,2]
[424303534,1780758649000,-700.0,0.00027457,2]
[424303538,1780758649000,-597.0,0.00027457,2]
[424303535,1780758649000,-700.0,0.00027457,2]
[424303537,1780758649000,-700.0,0.00027457,2]
[424303536,1780758649000,-700.0,0.00027457,2]
[424303533,1780758649000,-700.0,0.00027457,2]
[424303539,1780758649000,-500.0,0.000275,7]
[424303541,1780758649000,-2000.0,0.00027584,2]
[424303540,1780758649000,-3041.2,0.00027558,7]
[424303542,1780758649000,-2000.0,0.00027584,2]
[424303544,1780758649000,-2000.0,0.00027584,2]
[424303543,1780758649000,-2000.0,0.00027584,2]
[424303483,1780758649000,-492.21736737,0.0002715,2]
[424303516,1780758649000,-528.8,0.00027397,2]
[424303520,1780758649000,-492.21736737,0.00027397,2]
[424303530,1780758649000,-700.0,0.00027457,2]
[424303521,1780758649000,-302.9119302,0.00027397,2]
[424303492,1780758649000,-151.0,0.00027253,2]
[424303524,1780758649000,-4241.46,0.000274,7]
[424303494,1780758649000,-233.5188934,0.00027253,2]
[424303496,1780758649000,-233.5188934,0.00027253,2]
[424303493,1780758649000,-500.0,0.00027253,2]
[424303497,1780758649000,-477.13311722,0.00027279,2]
[424303498,1780758649000,-275.41505733,0.000273,30]
[424303500,1780758649000,-966.22,0.00027316,7]
[424303499,1780758649000,-275.41505732,0.000273,30]
[424303495,1780758649000,-200.0,0.00027253,2]
[424303501,1780758649000,-1038.02,0.00027316,7]
[424303502,1780758649000,-281.96937437,0.00027329,2]
[424303504,1780758649000,-1300.7,0.00027397,2]
[424303491,1780758649000,-200.0,0.00027253,2]
[424303513,1780758649000,-1470.24,0.00027397,2]
[424303512,1780758649000,-300.0,0.00027397,2]
[424303515,1780758649000,-1048.42,0.00027397,2]
[424303514,1780758649000,-3084.94,0.00027397,2]
[424303509,1780758649000,-150.0,0.00027397,2]
[424303507,1780758649000,-150.0,0.00027397,2]
[424303511,1780758649000,-1000.0,0.00027397,20]
[424303508,1780758649000,-200.0,0.00027397,2]
[424303505,1780758649000,-191.09386759,0.00027397,2]
[424303506,1780758649000,-474.18696108,0.00027397,2]
[424303503,1780758649000,-200.0,0.00027394,2]
[424303510,1780758649000,-1500.0,0.00027397,2]
[424303584,1780758650000,-242.15909246,0.00027801,2]
[424303581,1780758650000,-200.0,0.00027801,2]
[424303580,1780758650000,-1651.81367706,0.00027801,2]
[424303579,1780758650000,-11046.30350254,0.00027801,2]
[424303577,1780758650000,-323.68682015,0.00027801,2]
[424303574,1780758650000,-189.6598762,0.00027699,2]
[424303575,1780758650000,-242.15909246,0.00027801,2]
[424303578,1780758650000,-801.85129954,0.00027801,2]
[424303585,1780758650000,-200.0,0.00027801,2]
[424303582,1780758650000,-151.0,0.00027801,2]
[424303576,1780758650000,-201.93286098,0.00027801,2]
[424303583,1780758650000,-500.0,0.00027801,2]
[424303595,1780758650000,-150.0,0.00027836,2]
[424303592,1780758650000,-150.0,0.00027836,2]
[424303597,1780758650000,-1358.0,0.00027836,2]
[424303587,1780758650000,-281.96937437,0.00027827,2]
[424303588,1780758650000,-150.0,0.00027836,2]
[424303589,1780758650000,-150.0,0.00027836,2]
[424303594,1780758650000,-150.0,0.00027836,2]
[424303586,1780758650000,-242.15909246,0.00027801,2]
[424303590,1780758650000,-150.0,0.00027836,2]
[424303591,1780758650000,-150.0,0.00027836,2]
[424303593,1780758650000,-150.0,0.00027836,2]
[424303598,1780758650000,-1274.0,0.00027836,2]
[424303600,1780758650000,-1227.0,0.00027836,2]
[424303596,1780758650000,-3554.0,0.00027836,2]
[424303567,1780758650000,-166.0464063,0.00027688,2]
[424303545,1780758650000,-2000.0,0.00027584,2]
[424303569,1780758650000,-153.44899788,0.00027688,2]
[424303603,1780758650000,-700.0,0.000279,10]
[424303548,1780758650000,-150.0,0.00027584,2]
[424303547,1780758650000,-1928.88,0.00027584,2]
[424303546,1780758650000,-2000.0,0.00027584,2]
[424303549,1780758650000,-1000.0,0.00027584,2]
[424303550,1780758650000,-1000.0,0.00027584,2]
[424303551,1780758650000,-1000.0,0.00027584,2]
[424303555,1780758650000,-1000.0,0.00027584,2]
[424303556,1780758650000,-1000.0,0.00027584,2]
[424303558,1780758650000,-1000.0,0.00027584,2]
[424303553,1780758650000,-1000.0,0.00027584,2]
[424303554,1780758650000,-1000.0,0.00027584,2]
[424303571,1780758650000,-198.73331086,0.00027699,2]